{"text_format":"1","workbook":"xlsx","n_sheets":2,"sheets":["Modulo1","Foglio1"],"not_rendered":{"charts":0,"images":0,"macros":1,"external_links":0,"defined_names":1,"comments":0,"pivot_tables":0},"unopened":[],"bounds":{"document_bytes":16777216,"sheet_cells":100000,"rows_first":2000,"rows_last":500,"rows_between":2000,"halvings":0,"cell_chars":16384,"cell_head_chars":4096},"cells_cut":0,"cells_raw":0,"read":"whole","date_system":"1900"}

{"sheet":"Modulo1","index":0,"n_rows":0,"n_cols":0,"rows_kept":0,"cut":false,"hidden":true,"merged":[]}

{"sheet":"Foglio1","index":1,"n_rows":120,"n_cols":9,"rows_kept":120,"cut":false,"hidden":false,"merged":[[117,2,117,3],[106,1,106,8],[0,0,0,8],[1,0,1,8],[6,3,6,6],[7,4,7,8],[7,2,7,3],[3,1,3,3],[3,4,3,7],[4,4,4,7],[104,1,104,3],[12,0,12,6],[99,4,99,7],[10,4,10,6],[10,8,11,8],[10,3,11,3],[94,0,94,6],[102,4,102,7],[8,0,8,8],[101,0,101,8],[87,0,87,6],[82,0,82,6],[78,0,78,6],[74,0,74,6],[10,2,11,2],[10,1,11,1],[10,0,11,0],[10,7,11,7],[96,0,96,6],[69,0,69,6],[62,0,62,6],[58,0,58,6],[112,6,112,8],[108,2,108,3],[119,6,120,8],[9,0,9,8],[114,2,114,3],[115,2,115,3],[116,2,116,3],[118,2,118,3],[119,2,119,3],[109,2,109,3],[110,2,110,3],[111,2,111,3],[112,2,112,3],[113,2,113,3],[102,1,102,3],[99,1,99,3]]}
["ALLEGATO E - OFFERTA ECONOMICA"]
["Appalto per l'affidamento del servizio integrato di raccolta, trasporto, conferimento, trattamento e smaltimento dei rifiuti urbani ed assimilati, anche pericolosi, prodotti sul territorio della Comunità delle Giudicarie"]
[]
[null,null,null,null,"Importo annuale a base di gara soggetto a ribasso",null,null,null,3633641.79]
[null,null,null,null,"Importo totale a base di gara (39 mesi)",null,null,null,{"$f":"ROUND(I4/12*39,2)","v":11809335.82}]
[]
["La/Il sig.",null,"nato a",null,null,null,null,"il giorno"]
["in qualità di",null,"dell'operatore"]
["OFFRE"]
["Per compilare l'offerta inserire unicamente l'importo unitario offerto (celle rosse) per ciascuna voce dell'elenco prezzi/computo metrico, con al massimo due cifre decimali (quelle successive vengono troncate)"]
["Codice","Lavorazione","U.M.","Quantità annua","Prezzo Unitario Offerto (in Euro)",null,null,"Totale Voce Annuale","Totale Voce\n39 mesi"]
[null,null,null,null,"In cifre",null,"In lettere"]
["RACCOLTA STRADALE"]
["C8.001.01.a","CARTA – COMPATTATORE – BUSA DI TIONE","cad.",104,null,{"$f":"TRUNC(E14,2)","v":0},{"$f":"NumeroInEuro(F14)","v":" / 00"},{"$f":"ROUND(D14*F14,2)","v":0},{"$f":"H14/12*39","v":0}]
["C8.001.01.b","CARTA – COMPATTATORE – GIUDICARIE ESTERIORI","cad.",104,null,{"$f":"TRUNC(E15,2)","v":0},{"$f":"NumeroInEuro(F15)","v":" / 00"},{"$f":"ROUND(D15*F15,2)","v":0},{"$f":"H15/12*39","v":0}]
["C8.001.01.c","CARTA – COMPATTATORE – VALLE DEL CHIESE","cad.",104,null,0," / 00",0,0]
["C8.001.01.d","CARTA – COMPATTATORE – VALLE RENDENA","cad.",156,null,0," / 00",0,0]
["C8.001.02.a","MULTIMATERIALE – COMPATTATORE – BUSA DI TIONE","cad.",104,null,0," / 00",0,0]
["C8.001.02.b","MULTIMATERIALE – COMPATTATORE – GIUDICARIE ESTERIORI","cad.",104,null,0," / 00",0,0]
["C8.001.02.c","MULTIMATERIALE – COMPATTATORE – VALLE DEL CHIESE","cad.",52,null,0," / 00",0,0]
["C8.001.02.d","MULTIMATERIALE – COMPATTATORE – VALLE RENDENA","cad.",156,null,0," / 00",0,0]
["C8.001.02.e","MULTIMATERIALE – COMPATTATORE – CAMPIGLIO","cad.",156,null,0," / 00",0,0]
["C8.001.03.a","RESIDUO – COMPATTATORE – BUSA DI TIONE","cad.",52,null,0," / 00",0,0]
["C8.001.03.b","RESIDUO – COMPATTATORE – GIUDICARIE ESTERIORI","cad.",52,null,0," / 00",0,0]
["C8.001.03.c","RESIDUO – COMPATTATORE – VALLE DEL CHIESE","cad.",52,null,0," / 00",0,0]
["C8.001.03.d","RESIDUO – COMPATTATORE – VALLE RENDENA","cad.",78,null,0," / 00",0,0]
["C8.001.03.e","RESIDUO – COMPATTATORE – CAMPIGLIO","cad.",78,null,0," / 00",0,0]
["C8.002.01.a","ORGANICO – COMPATTATORE – BUSA DI TIONE","cad.",104,null,0," / 00",0,0]
["C8.002.01.b","ORGANICO – COMPATTATORE – GIUDICARIE ESTERIORI","cad.",104,null,0," / 00",0,0]
["C8.002.01.c","ORGANICO – COMPATTATORE – VALLE DEL CHIESE","cad.",104,null,0," / 00",0,0]
["C8.002.01.d","ORGANICO – COMPATTATORE – VALLE RENDENA","cad.",130,null,0," / 00",0,0]
["C8.002.01.e","ORGANICO – COMPATTATORE – CAMPIGLIO","cad.",104,null,0," / 00",0,0]
["C8.003.01.a","CARTONE – COMPATTATORE – BUSA DI TIONE","cad.",52,null,0," / 00",0,0]
["C8.003.01.b","CARTONE – COMPATTATORE – GIUDICARIE ESTERIORI","cad.",52,null,0," / 00",0,0]
["C8.003.01.c","CARTONE – COMPATTATORE – VALLE DEL CHIESE","cad.",52,null,0," / 00",0,0]
["C8.003.01.d","CARTONE – COMPATTATORE – VALLE RENDENA","cad.",52,null,0," / 00",0,0]
["C8.003.01.e","CARTA+CARTONE - COMPATTATORE - CAMPIGLIO","cad.",156,null,0," / 00",0,0]
["C8.004.01.a","CARTA – SCARRABILE – BUSA DI TIONE","cad.",104,null,0," / 00",0,0]
["C8.004.01.b","CARTA – SCARRABILE – GIUDICARIE ESTERIORI","cad.",104,null,0," / 00",0,0]
["C8.004.01.c","CARTA – SCARRABILE – VALLE DEL CHIESE","cad.",104,null,0," / 00",0,0]
["C8.004.01.d","CARTA – SCARRABILE – VALLE RENDENA","cad.",133,null,0," / 00",0,0]
["C8.004.01.e","CARTA – SCARRABILE – CAMPIGLIO","cad.",133,null,0," / 00",0,0]
["C8.004.02.a","MULTIMATERIALE – SCARRABILE – BUSA DI TIONE","cad.",104,null,0," / 00",0,0]
["C8.004.02.b","MULTIMATERIALE – SCARRABILE – GIUDICARIE ESTERIORI","cad.",104,null,0," / 00",0,0]
["C8.004.02.c","MULTIMATERIALE – SCARRABILE – VALLE DEL CHIESE","cad.",104,null,0," / 00",0,0]
["C8.004.02.d","MULTIMATERIALE – SCARRABILE – VALLE RENDENA","cad.",133,null,0," / 00",0,0]
["C8.004.02.e","MULTIMATERIALE – SCARRABILE – CAMPIGLIO","cad.",133,null,0," / 00",0,0]
["C8.004.03.a","RESIDUO – SCARRABILE – BUSA DI TIONE","cad.",26,null,0," / 00",0,0]
["C8.004.03.b","RESIDUO – SCARRABILE – GIUDICARIE ESTERIORI","cad.",26,null,0," / 00",0,0]
["C8.004.03.c","RESIDUO – SCARRABILE – VALLE DEL CHIESE","cad.",26,null,0," / 00",0,0]
["C8.004.03.d","RESIDUO – SCARRABILE – VALLE RENDENA","cad.",38,null,0," / 00",0,0]
["C8.004.03.e","RESIDUO – SCARRABILE – CAMPIGLIO","cad.",38,null,0," / 00",0,0]
["C8.004.04.a","VETRO – SCARRABILE – BUSA DI TIONE","cad.",18,null,0," / 00",0,0]
["C8.004.04.b","VETRO – SCARRABILE – GIUDICARIE ESTERIORI","cad.",18,null,0," / 00",0,0]
["C8.004.04.c","VETRO – SCARRABILE – VALLE DEL CHIESE","cad.",18,null,0," / 00",0,0]
["C8.004.04.d","VETRO – SCARRABILE – VALLE RENDENA","cad.",25,null,0," / 00",0,0]
["C8.005","VETRO – SCARRABILE – CAMPIGLIO","cad.",26,null,0," / 00",0,0]
["C8.011","VETRO – VASCHETTA – CAMPIGLIO","cad.",104,null,0," / 00",0,0]
["MICRORACCOLTA"]
["C8.006","RACCOLTA E TRASPORTO INDUMENTI","cad.",26,null,0," / 00",{"$f":"ROUND(D60*F60,2)","v":0},0]
["C8.007","RACCOLTA E TRASPORTO PILE","cad.",12,null,0," / 00",0,0]
["C8.008","RACCOLTA E TRASPORTO FARMACI","cad.",12,null,0," / 00",0,0]
["LAVAGGI"]
["C8.009","SERVIZIO DI LAVAGGIO DEI CASSONETTI","cad.",38,null,0," / 00",{"$f":"ROUND(D64*F64,2)","v":0},0]
["C8.010","SERVIZIO DI PULIZIA DEI CONTENITORI SEMINTERRATI","cad.",60,null,0," / 00",0,0]
["C8.012","SERVIZIO DI ASPIRAZIONE E SMALTIMENTO FOSSA SETTICA CENTRO INTEGRATO","cad.",4,null,0," / 00",0,0]
["C8.019","SERVIZIO DI PULIZIA DEI DISOLEATORI E VASCHE A TENUTA STAGNA DEI CRM","cad.",15,null,0," / 00",0,0]
["C8.020","SMALTIMENTO DEI  DEI DISOLEATORI E VASCHE A TENUTA STAGNA DEI CRM","t",150,null,0," / 00",0,0]
["C8.035","SERVIZIO DI ASPIRAZIONE E SMALTIMENTO FOSSA SETTICA CENTRO INTEGRATO","cad.",6,null,0," / 00",0,0]
[6]
["C8.013","SERVIZIO TRASPORTO CONTAINER ALL'INTERNO …","km",65500,null,0," / 00",{"$f":"ROUND(D71*F71,2)","v":0},0]
["C8.014(1)","SOVRAPPREZZO AL SERVIZIO DI RITIRO CONTAINER","cad.",1500,null,0," / 00",0,0]
["C8.015","SERVIZIO DI PRESA CON RAGNO O GRU","km",5000,null,0," / 00",0,0]
["C8.016","SOVRAPPREZZO AL SERVIZIO DI PRESA CON RAGNO O GRU","cad.",120,null,0," / 00",0,0]
["TRASPORTI ESTERNI ALLA COMUNITÀ"]
["C8.017","SERVIZIO TRASPORTO CONTAINER ALL'ESTERNO … MOTRICE","km",120000,null,0," / 00",{"$f":"ROUND(D76*F76,2)","v":0},0]
["C8.018","SERVIZIO TRASPORTO CONTAINER ALL'ESTERNO … RIMORCHIO","km",120000,null,0," / 00",0,0]
["C8.014(1)","SOVRAPPREZZO AL SERVIZIO DI RITIRO CONTAINER","cad.",100,{"$f":"E72","v":0},0," / 00",0,0]
["CENTRO INTEGRATO E STAZIONE DI TRASFERIMENTO DELLA FORSU"]
["C8.030","MOVIMENTAZIONE RIFIUTI PRESSO CENTRO INTEGRATO - FISSO","mese",12,null,0," / 00",{"$f":"ROUND(D80*F80,2)","v":0},0]
["C8.031","MOVIMENTAZIONE RIFIUTI PRESSO CENTRO INTEGRATO - VARIABILE","t",11500.91,null,{"$f":"TRUNC(E81,2)","v":0},{"$f":"NumeroInEuro(F81)","v":" / 00"},0,{"$f":"H81/12*39","v":0}]
["C8.032","MOVIMENTAZIONE, TRATTAMENTO e TRASPORTO SOSTANZA ORGANICA","t",4600,null,0," / 00",0,0]
[]
["C8.026","NOLO AUTOCOMPATTATORE/AUTOCARRO SCARRABILE","ore",80,null,{"$f":"TRUNC(E84,2)","v":0},{"$f":"NumeroInEuro(F84)","v":" / 00"},{"$f":"ROUND(D84*F84,2)","v":0},{"$f":"H84/12*39","v":0}]
["C8.027","SERVIZIO DI PULIZIA ISOLE ECOLOGICHE GIORNI FERIALI","giorni",100,null,0," / 00",0,0]
["C8.028","SERVIZIO DI PULIZIA ISOLE ECOLOGICHE GIORNI FESTIVI","giorni",20,null,0," / 00",0,0]
["C8.029","NOLO VASCHETTA","ore",120,null,0," / 00",0,0]
["SPAZZAMENTO MECCANIZZATO"]
["C8.021","SPAZZAMENTO CON SPAZZATRICE MECCANICA ASPIRANTE","ore",320,null,{"$f":"TRUNC(E89,2)","v":0},{"$f":"NumeroInEuro(F89)","v":" / 00"},{"$f":"ROUND(D89*F89,2)","v":0},{"$f":"H89/12*39","v":0}]
["C8.022","PULIZIA POZZETTI CON AUTOBOTTE ASPIRANTE","ore",320,null,0," / 00",0,0]
["C8.023","INDENNITA' PER LO SMALTIMENTO DELLE SABBIE 200303","t",800,null,0," / 00",0,0]
["C8.024","INDENNITA' PER LO SMALTIMENTO DELLE SABBIE 200306","t",400,null,0," / 00",0,0]
["C8.025","SERVIZIO TRASPORTO CONTAINER NELL'AMBITO DEL SERVIZIO DI PULIZIA STRADE","km",2000,null,0," / 00",0,0]
["C8.033","SERVIZIO TRASPORTO CONTAINER…….RIBALTABILE","km",750,null,0," / 00",0,0]
["SMALTIMENTO FORSU"]
["C8.036","INDENNITA' PER LO SMALTIMENTO DELLA FORSU DI CUI AL CER 200108","t",3772,null,0,{"$f":"NumeroInEuro(F96)","v":" / 00"},{"$f":"ROUND(D96*F96,2)","v":0},{"$f":"H96/12*39","v":0}]
["IMPORTI NON SOGGETTI A RIBASSO"]
["C8.034","Oneri della sicurezza","ore",80,36.479999999999997,{"$f":"TRUNC(E98,2)","v":36.479999999999997},{"$f":"NumeroInEuro(F98)","v":"trentasei / 48"},{"$f":"ROUND(D98*F98,2)","v":2918.4},{"$f":"H98/12*39","v":9484.8000000000011}]
[]
[null,"IMPORTO ANNUALE OFFERTA",null,null,{"$f":"NumeroInEuro(I100)","v":"duemilanovecentodiciotto / 40"},null,null,null,{"$f":"SUM(H14:H98)","v":2918.4}]
[]
["VALORE DA INSERIRE A SISTEMA SAP-SRM"]
[null,"IMPORTO COMPLESSIVO OFFERTO (39 MESI)",null,null,{"$f":"NumeroInEuro(I103)","v":"novemilaquattrocentoottantaquattro / 80"},null,null,null,{"$f":"I100/12*39","v":9484.8000000000011}]
[]
[null,"RIBASSO PERCENTUALE",null,null,null,null,null,null,{"$f":"(I4-I100)/I4","v":0.99919683882763799}]
[]
["(1)","Per la voce C8.014 è prevista una quantità di 1.600 annuo, di cui 1.500 dedicati ai trasporti interni e i rimanenti 100 ai trasporti esterni alla Comunità. Il prezzo è il medesimo."]
[]
["ID","RIEPILOGO CATEGORIE","Importo offerto"]
[1,"Raccolta stradale",{"$f":"SUM(H14:H58)","v":0}]
[2,"Microraccolta",{"$f":"SUM(H60:H62)","v":0}]
[3,"Lavaggi",{"$f":"SUM(H64:H69)","v":0}]
[4,"Trasporti interni alla Comunità",{"$f":"SUM(H71:H74)","v":0},null,null,null,"Firma e timbro concorrente/i"]
[5,"Trasporti esterni alla Comunità",{"$f":"SUM(H76:H78)","v":0}]
[6,"Centro integrato e stazione di trasferimento FORSU",{"$f":"SUM(H80:H82)","v":0}]
[7,"Economie",{"$f":"SUM(H84:H87)","v":0}]
[8,"Spazzamento meccanizzato",{"$f":"SUM(H89:H94)","v":0}]
[9,"Smaltimento forsu",{"$f":"H96","v":0}]
[10,"Oneri della sicurezza",{"$f":"H98","v":2918.4}]
[null,"TOTALE ANNUALE",{"$f":"SUM(C110:C119)","v":2918.4},null,null,null,"N.B. è richiesto l'assolvimento dell'imposta di bollo, sull'apposito modulo E, allegato al bando, nella misura di € 16,00"]